bitfinex/quotes_SOLUSD_20250518
["timestamp","ask_amount","ask_price","bid_price","bid_amount"]
[1747598011252,9.5,166.75,166.72,5.99808061]
[1747598011452,9.5,166.78,166.74,38.90055441]
[1747598011649,9.5,166.78,166.72,20.99328214]
[1747598011650,9.5,166.79,166.77,38.90055441]
[1747598011868,9.5,166.8,166.79,5.99556328]
[1747598012179,9.5,166.8,166.79,44.89611769]
[1747598012677,37.8,166.83,166.79,44.89611769]
[1747598012879,37.8,166.83,166.82,38.90055441]
[1747598013049,9.5,166.86,166.82,38.90055441]
[1747598013248,9.5,166.9,166.8,18.64964886]
[1747598013466,9.5,166.89,166.88,38.90055441]
[1747598013671,9.5,166.89,166.88,38.47872484]
[1747598014056,9.5,166.89,166.88,44.47093501]
[1747598014376,9.5,166.89,166.84,5.99376648]
[1747598014555,9.5,166.87,166.84,5.99376648]
[1747598014977,9.5,166.9,166.86,38.47872484]
[1747598015195,9.5,166.9,166.89,38.47872484]
[1747598015578,9.5,166.9,166.88,38.47872484]
[1747598015808,9.5,166.88,166.84,5.99376648]
[1747598015980,9.5,166.87,166.86,44.47155391]
[1747598017781,9.5,166.86,166.84,5.99341727]
[1747598018023,47.97872484,166.86,166.78,1.5622]
[1747598018224,9.5,166.8,166.78,7.55806959]
[1747598018384,9.5,166.8,166.78,44.47459443]
[1747598018586,9.5,166.8,166.79,38.47872484]
[1747598018881,9.5,166.82,166.78,20.98567652]
[1747598019505,9.5,166.81,166.78,20.98567652]
[1747598019705,9.5,166.81,166.8,38.47872484]
[1747598019909,9.5,166.81,166.79,38.47872484]
[1747598020110,9.5,166.81,166.79,44.47425568]
[1747598020320,9.5,166.81,166.79,38.47872484]
[1747598020613,9.5,166.81,166.78,44.47462355]
[1747598020911,9.5,166.79,166.78,38.47872484]
[1747598021091,9.5,166.84,166.78,38.47872484]
[1747598021302,9.5,166.84,166.77,38.47872484]
[1747598021303,9.5,166.9,166.83,38.47872484]
[1747598021488,41.18398741,166.92,166.83,38.47872484]
[1747598021489,4.08398741,166.92,166.89,38.47872484]
[1747598021686,4.08398741,166.92,166.91,38.47872484]
[1747598021916,4.08398741,166.92,166.86,38.47872484]
[1747598022090,4.08398741,166.92,166.91,44.46997761]
[1747598022621,4.08398741,166.92,166.91,101.59835131]
[1747598022795,2.41738741,166.92,166.91,101.59835131]
[1747598022997,2.41738741,166.92,166.91,44.46997761]
[1747598023197,2.41738741,166.92,166.91,5.99125277]
[1747598023401,2.41738741,166.92,166.91,44.46997761]
[1747598023603,2.41738741,166.92,166.91,5.99125277]
[1747598023805,2.41738741,166.92,166.91,38.47872484]
[1747598024410,9.5,166.93,166.91,38.47872484]
[1747598024615,9.5,166.93,166.92,38.47872484]
[1747598024924,9.5,166.93,166.87,20.9744112]
[1747598025121,3.2429013,166.98,166.87,20.9744112]
[1747598025122,9.5,166.95,166.87,20.9744112]
[1747598025419,9.5,166.95,166.94,38.47872484]
[1747598025631,9.5,166.94,166.93,38.47872484]
[1747598025816,9.5,166.94,166.92,38.47872484]
[1747598026032,9.5,166.94,166.87,20.9744112]
[1747598026033,9.5,166.94,166.93,38.47872484]
[1747598026208,9.5,166.95,166.93,38.47872484]
[1747598026406,9.5,166.95,166.94,38.47872484]
[1747598026805,9.5,166.93,166.88,5.99232981]
[1747598027114,9.5,166.92,166.88,5.99232981]
[1747598027313,9.5,166.92,166.91,38.47872484]
[1747598027715,9.5,166.97,166.91,38.47872484]
[1747598027915,12.7429013,166.98,166.88,20.97315435]
[1747598028128,12.7429013,166.98,166.97,38.47872484]
[1747598028509,9.5,166.98,166.97,38.47872484]
[1747598029027,9.5,166.98,166.91,14.97730212]
[1747598029214,9.5,166.98,166.97,38.47872484]
[1747598030412,9.5,166.95,166.94,38.47872484]
[1747598030618,9.5,166.94,166.93,38.47872484]
[1747598031833,9.5,166.97,166.93,38.47872484]
[1747598032047,9.5,166.96,166.95,38.47872484]
[1747598032425,9.5,166.98,166.95,38.47872484]
[1747598032734,9.5,166.98,166.97,38.47872484]
[1747598033237,9.5,166.95,166.94,38.47872484]
[1747598033557,9.5,166.93,166.92,38.47872484]
[1747598033715,9.5,166.93,166.91,38.47872484]
[1747598034047,9.5,166.93,166.92,38.47872484]
[1747598035151,9.5,166.95,166.92,38.47872484]
[1747598035445,9.5,166.93,166.87,24.64233777]
[1747598035617,9.5,166.94,166.92,38.47872484]
[1747598035823,9.5,166.93,166.9,38.47872484]
[1747598036319,9.5,166.93,166.91,38.47872484]
[1747598036743,9.5,166.81,166.79,38.47872484]
[1747598037053,9.5,166.82,166.79,38.47872484]
[1747598037353,9.5,166.8,166.79,38.47872484]
[1747598037555,9.5,166.84,166.79,38.47872484]
[1747598037855,9.5,166.86,166.83,38.47872484]
[1747598038038,9.5,166.86,166.85,38.47872484]
[1747598038351,9.5,166.88,166.85,38.47872484]
[1747598038552,9.5,166.81,166.75,18.64964886]
[1747598038729,9.5,166.81,166.78,38.47872484]
[1747598038927,9.5,166.81,166.74,31.99736116]
[1747598039236,9.5,166.79,166.77,38.47872484]
[1747598039437,9.5,166.79,166.78,38.47872484]
[1747598039641,9.5,166.83,166.78,44.47446437]
[1747598039842,9.5,166.83,166.78,38.47872484]
[1747598039843,9.5,166.8,166.78,38.47872484]
[1747598040168,9.5,166.8,166.79,38.47872484]
[1747598040537,9.5,166.83,166.79,38.47872484]
[1747598040741,15.49423604,166.83,166.81,38.47872484]
[1747598040941,9.5,166.85,166.82,38.47872484]
[1747598041144,9.5,166.84,166.83,38.47872484]
[1747598041455,9.5,166.84,166.82,38.47872484]
[1747598041754,9.5,166.87,166.83,44.47275684]
[1747598042054,9.5,166.89,166.86,38.47872484]
[1747598042353,9.5,166.93,166.88,38.47872484]
[1747598042555,9.5,166.96,166.92,38.47872484]
[1747598042855,9.5,166.97,166.95,38.47872484]
[1747598043056,9.5,166.97,166.96,38.47872484]
[1747598043240,9.5,166.99,166.96,38.47872484]
[1747598043441,9.5,167.03,166.98,38.47872484]
[1747598043756,9.5,167.0,166.99,38.47872484]
[1747598044256,9.5,166.97,166.92,5.99089384]
[1747598044635,9.5,166.99,166.92,5.99089384]
[1747598044837,5.98709433,167.03,166.92,5.99089384]
[1747598044838,9.5,166.97,166.92,5.99089384]
[1747598045044,9.5,166.97,166.96,38.47872484]
[1747598045442,9.5,166.97,166.9,40.97847844]
[1747598045443,9.5,166.97,166.88,5.99232981]
[1747598045652,9.5,166.96,166.93,38.47872484]
[1747598045840,9.5,166.96,166.95,38.47872484]
[1747598046239,9.5,166.95,166.89,5.99197075]
[1747598046444,9.5,166.93,166.92,38.47872484]
[1747598046664,9.5,166.93,166.91,38.47872484]
[1747598046870,9.5,166.95,166.92,38.47872484]
[1747598047063,9.5,166.97,166.94,38.47872484]
[1747598047254,9.5,166.98,166.96,38.47872484]
[1747598047459,9.5,166.98,166.97,38.47872484]
[1747598047656,9.5,166.97,166.89,46.97189764]
[1747598047846,9.5,166.99,166.96,38.47872484]
[1747598048046,9.5,166.99,166.98,38.47872484]
[1747598048262,9.5,166.99,166.91,18.64964886]
[1747598048587,224.26,167.06,166.95,38.47872484]
[1747598048588,9.5,166.96,166.95,38.47872484]
[1747598048864,9.5,166.94,166.93,38.47872484]
[1747598049065,9.5,166.93,166.92,38.47872484]
[1747598049455,9.5,166.92,166.91,38.47872484]
[1747598049643,9.5,166.95,166.91,38.47872484]
[1747598049843,9.5,166.96,166.94,38.47872484]
[1747598050063,9.5,166.95,166.89,5.99197075]
[1747598050249,9.5,166.96,166.94,38.47872484]
[1747598050443,9.5,166.96,166.95,38.47872484]
[1747598050642,9.5,166.95,166.87,6.0704]
[1747598050843,9.5,166.91,166.87,6.0704]
[1747598051043,9.5,166.92,166.87,6.0704]
[1747598051239,44.46834422,166.96,166.87,6.0704]
[1747598051240,9.5,166.9,166.87,6.0704]
[1747598051471,9.5,166.9,166.84,1.6348]
[1747598051668,9.5,166.89,166.84,7.62853236]
[1747598051879,9.5,166.91,166.85,18.64964886]
[1747598052051,9.5,166.91,166.9,38.47872484]
[1747598052468,9.5,166.87,166.84,1.6348]
[1747598052769,9.5,166.89,166.86,38.47872484]
[1747598052981,9.5,166.88,166.84,7.62847833]
[1747598053782,9.5,166.89,166.84,7.62847833]
[1747598053987,9.5,166.88,166.84,7.62847833]
[1747598054177,9.5,166.89,166.87,38.47872484]
[1747598054379,9.5,166.88,166.84,7.62847833]
[1747598054974,9.5,166.89,166.84,7.62847833]
[1747598055293,9.5,166.9,166.84,7.62847833]
[1747598055471,9.5,166.91,166.89,38.47872484]
[1747598055669,9.5,166.9,166.89,38.47872484]
[1747598056575,9.5,166.91,166.89,38.47872484]
[1747598056770,9.5,166.91,166.9,38.47872484]
[1747598056974,9.5,166.93,166.9,38.47872484]
[1747598057279,9.5,166.98,166.92,38.47872484]
[1747598057478,9.5,166.98,166.95,38.47872484]
[1747598057704,9.5,166.96,166.88,18.64964886]
[1747598057875,9.5,166.96,166.95,38.47872484]
[1747598058067,9.5,166.95,166.91,5.99095408]
[1747598058272,9.5,166.94,166.91,5.99095408]
[1747598058772,9.5,166.97,166.91,5.99095408]
[1747598058987,9.5,166.94,166.91,5.99095408]
[1747598059194,9.5,166.92,166.87,5.99268891]
[1747598059672,9.5,166.92,166.91,38.47872484]
[1747598060384,9.5,166.92,166.87,5.99243398]
[1747598060579,9.5,166.9,166.85,24.64275261]
[1747598060780,9.5,166.9,166.85,5.99310375]
[1747598060990,9.5,166.89,166.85,5.99310375]
[1747598061192,9.5,166.89,166.84,1.6348]
[1747598061395,9.5,166.87,166.84,1.6348]
[1747598061896,9.5,166.87,166.86,38.47872484]
[1747598062100,9.5,166.85,166.83,38.47872484]
[1747598062281,14.97854076,166.91,166.83,38.47872484]
[1747598062282,9.5,166.91,166.83,38.47872484]
[1747598062476,9.5,166.88,166.82,26.0]
[1747598062677,137.37662314,166.96,166.79,20.98447148]
[1747598062678,9.5,166.91,166.87,38.47872484]
[1747598062894,15.48948538,166.96,166.9,38.47872484]
[1747598063199,9.5,166.95,166.92,38.47872484]
[1747598063389,35.82,166.99,166.94,38.47872484]
[1747598063390,9.5,166.97,166.94,38.47872484]
[1747598063707,9.5,166.97,166.95,38.47872484]
[1747598064191,9.5,166.97,166.96,38.47872484]
[1747598064696,9.5,166.97,166.95,38.47872484]
[1747598064907,9.5,166.95,166.91,5.99125277]
[1747598065197,9.5,166.98,166.94,38.47872484]
[1747598065396,9.5,166.98,166.96,38.47872484]
[1747598066882,9.5,166.98,166.97,38.47872484]
[1747598067996,9.5,166.96,166.9,31.9912851]
[1747598068314,9.5,166.95,166.9,31.9912851]
[1747598068909,9.5,166.95,166.91,18.64964886]
[1747598069394,9.5,166.96,166.94,38.47872484]
[1747598069587,9.5,166.96,166.95,38.47872484]
[1747598069791,9.5,166.95,166.91,18.64964886]
[1747598069996,9.5,166.95,166.94,38.47872484]
[1747598070509,9.5,166.89,166.85,5.99340725]
[1747598070705,9.5,166.88,166.85,5.99340725]
[1747598070907,9.5,166.89,166.87,38.47872484]
[1747598071081,9.5,166.88,166.85,5.99340725]
[1747598071276,9.5,166.9,166.85,5.99340725]
[1747598071688,9.5,166.93,166.86,18.64964886]
[1747598071886,9.5,166.94,166.86,18.64964886]
[1747598072184,9.5,166.94,166.93,38.47872484]
[1747598072993,9.5,166.95,166.93,38.47872484]
[1747598073187,9.5,166.97,166.94,38.47872484]
[1747598073386,9.5,166.97,166.96,38.47872484]
[1747598073585,5.98864928,166.99,166.96,38.47872484]
[1747598073586,9.5,166.98,166.96,38.47872484]
[1747598073791,15.48877411,166.98,166.96,38.47872484]
[1747598073992,9.5,166.97,166.96,38.47872484]
[1747598074196,9.5,166.96,166.89,44.64964886]
[1747598074511,9.5,166.94,166.89,44.64964886]
[1747598074682,9.5,166.93,166.89,26.0]
[1747598074901,9.5,166.91,166.87,5.99265724]
[1747598075102,9.5,166.84,166.83,1.6357]
[1747598075434,9.5,166.83,166.8,6.0957]
[1747598075618,26.0,166.93,166.8,6.0957]
[1747598075619,9.5,166.81,166.8,6.0957]
[1747598075820,9.5,166.81,166.76,5.99660391]
[1747598076146,9.5,166.8,166.79,38.47872484]
[1747598076305,9.5,166.79,166.78,38.47872484]
[1747598076838,9.5,166.79,166.75,6.0957]
[1747598077008,9.5,166.79,166.78,38.47872484]
[1747598077411,9.5,166.78,166.77,38.47872484]
[1747598077816,9.5,166.77,166.73,31.99772086]
[1747598078116,9.5,166.82,166.76,76.95744968]
[1747598078318,9.5,166.82,166.81,38.47872484]
[1747598078524,9.5,166.83,166.81,38.47872484]
[1747598078738,9.5,166.85,166.82,38.47872484]
[1747598079059,9.5,166.85,166.84,38.47872484]
[1747598080257,9.5,166.8,166.77,38.47872484]
[1747598080544,9.5,166.83,166.79,38.47872484]
[1747598080716,9.5,166.86,166.82,38.47872484]
[1747598080916,9.5,166.86,166.85,38.47872484]
[1747598081112,9.5,166.88,166.85,38.47872484]
[1747598081343,9.5,166.88,166.87,38.47872484]
[1747598081722,9.5,166.93,166.87,38.47872484]
[1747598081921,9.5,166.91,166.9,38.47872484]
[1747598082339,9.5,166.91,166.86,38.47872484]
[1747598082556,9.5,166.91,166.9,38.47872484]
[1747598082755,9.5,166.84,166.81,6.4229]
[1747598082953,9.5,166.84,166.83,38.47872484]
[1747598083634,9.5,166.85,166.83,38.47872484]
[1747598083859,9.5,166.85,166.84,38.47872484]
[1747598084033,9.5,166.86,166.84,38.47872484]
[1747598084243,9.5,166.88,166.85,38.47872484]
[1747598084432,9.5,166.88,166.87,38.47872484]
[1747598085231,9.5,166.86,166.81,32.4229]
[1747598085432,9.5,166.88,166.85,38.47872484]
[1747598085632,9.5,166.88,166.87,38.47872484]
[1747598085861,9.5,166.87,166.86,38.47872484]
[1747598086058,9.5,166.88,166.86,38.47872484]
[1747598086241,9.5,166.87,166.82,5.99447982]
[1747598086757,9.5,166.85,166.81,38.41772562]
[1747598086946,9.5,166.85,166.81,32.4229]
[1747598087362,9.5,166.85,166.84,38.47872484]
[1747598088442,9.5,166.88,166.84,38.47872484]
[1747598088765,9.5,166.87,166.83,5.99412575]
[1747598089066,9.5,166.87,166.86,38.47872484]
[1747598089461,9.5,166.88,166.86,38.47872484]
[1747598089768,9.5,166.88,166.87,38.47872484]
[1747598090752,137.37662314,166.94,166.87,44.47141375]
[1747598090753,9.5,166.92,166.87,44.47141375]
[1747598090958,9.5,166.88,166.87,5.99268891]
[1747598091273,9.5,166.94,166.87,44.47141375]
[1747598091485,9.5,166.91,166.87,5.99268891]
[1747598091775,9.5,166.95,166.87,7.62298891]
[1747598092549,9.5,166.95,166.93,38.47872484]
[1747598092877,15.48984176,166.95,166.92,38.47872484]
[1747598093265,9.5,166.97,166.94,38.47872484]
[1747598093465,15.48878833,166.98,166.96,38.47872484]
[1747598093684,9.5,166.98,166.97,38.47872484]
[1747598093979,9.5,166.99,166.97,38.47872484]
[1747598094149,9.5,166.99,166.98,38.47872484]
[1747598094771,9.5,166.99,166.97,38.47872484]
[1747598095159,9.5,166.98,166.97,38.47872484]
[1747598095362,15.48839014,166.99,166.97,38.47872484]
[1747598095573,15.48839014,166.99,166.98,38.47872484]
[1747598095957,15.48839014,166.99,166.92,24.64038147]
[1747598096256,9.5,166.98,166.97,38.47872484]
[1747598096459,15.48874116,166.98,166.97,38.47872484]
[1747598096777,9.5,166.97,166.91,26.0]
[1747598097087,9.5,166.95,166.91,26.0]
[1747598097255,9.5,166.95,166.9,26.0]
[1747598097471,9.5,166.88,166.81,8.0196]
[1747598097660,9.5,166.86,166.81,8.0196]
[1747598098075,9.5,166.87,166.81,8.0196]
[1747598098384,9.5,166.86,166.85,38.47872484]
[1747598098591,9.5,166.86,166.84,38.47872484]
[1747598098778,9.5,166.86,166.85,38.47872484]
[1747598099670,9.5,166.86,166.81,14.01444351]
[1747598099969,9.5,166.86,166.85,38.47872484]
[1747598100166,9.5,166.86,166.81,14.01444351]
[1747598100368,9.5,166.89,166.85,38.47872484]
[1747598100566,9.5,166.91,166.88,38.47872484]
[1747598100771,9.5,166.93,166.87,18.64964886]
[1747598100991,9.5,166.87,166.86,38.47872484]
[1747598101209,9.5,166.86,166.8,26.0]
[1747598101495,20.96694473,166.93,166.8,26.0]
[1747598101496,9.5,166.84,166.8,5.99484812]
[1747598101668,38.47872484,166.9,166.8,5.99484812]
[1747598101669,9.5,166.83,166.8,5.99484812]
[1747598101977,9.5,166.85,166.81,40.01429063]
[1747598102584,9.5,166.83,166.81,8.0196]
[1747598102766,9.5,166.83,166.82,38.47872484]
[1747598103391,9.5,166.78,166.76,7.7161]
[1747598103598,9.5,166.73,166.66,7.35010975]
[1747598103895,9.5,166.73,166.72,38.47872484]
[1747598104075,9.5,166.71,166.67,26.0]
[1747598104392,9.5,166.71,166.66,6.1509]
[1747598104594,9.5,166.68,166.65,1.5652]
[1747598104796,9.5,166.69,166.65,1.5652]
[1747598105195,5.99775561,166.73,166.68,76.95744968]
[1747598105196,9.5,166.73,166.68,76.95744968]
[1747598105503,9.5,166.74,166.68,64.47872484]
[1747598105705,9.5,166.72,166.68,64.47872484]
[1747598105911,9.5,166.72,166.71,38.47872484]
[1747598106411,9.5,166.7,166.65,1.5652]
[1747598106705,26.0,166.76,166.63,24.33927673]
[1747598106706,9.5,166.68,166.67,38.47872484]
[1747598107208,9.5,166.68,166.63,18.33806948]
[1747598107209,9.5,166.66,166.63,18.33806948]
[1747598107508,9.5,166.63,166.6,1.6536]
[1747598107712,9.5,166.66,166.61,26.0]
[1747598107917,9.5,166.65,166.61,26.0]
[1747598108611,9.5,166.67,166.61,32.00171588]
[1747598108782,9.5,166.65,166.62,26.0]
[1747598108988,9.5,166.65,166.64,38.47872484]
[1747598109720,40.87844915,166.71,166.64,38.47872484]
[1747598109721,9.5,166.67,166.65,18.64964886]
[1747598109899,34.88,166.71,166.66,38.47872484]
[1747598110085,9.5,166.66,166.61,6.00171588]
[1747598110284,9.5,166.65,166.62,26.0]
[1747598110486,9.5,166.62,166.55,8.0827]
[1747598110708,9.5,166.62,166.56,6.00384245]
[1747598110989,9.5,166.62,166.61,38.47872484]
[1747598111205,6.00021028,166.67,166.56,6.00384245]
[1747598111206,9.5,166.61,166.56,6.00384245]
[1747598111519,9.5,166.61,166.57,26.0]
[1747598111813,9.5,166.63,166.6,38.47872484]
[1747598112125,9.5,166.66,166.62,38.47872484]
[1747598112412,9.5,166.66,166.59,64.47872484]
[1747598112602,9.5,166.66,166.65,38.47872484]
[1747598113100,9.5,166.68,166.65,44.4793249]
[1747598113426,9.5,166.76,166.67,111.04014968]
[1747598113593,4.099191,166.81,166.7,26.0]
[1747598113594,9.5,166.74,166.7,26.0]
[1747598113788,9.5,166.74,166.67,34.0827]
[1747598113985,9.5,166.73,166.68,38.47872484]
[1747598114201,9.5,166.73,166.72,38.47872484]
[1747598114389,4.099191,166.81,166.72,38.47872484]
[1747598114390,9.5,166.74,166.72,38.47872484]
[1747598114589,9.5,166.74,166.73,38.47872484]
[1747598114791,9.5,166.76,166.73,44.4764457]
[1747598115022,9.5,166.74,166.73,5.99772086]
[1747598115229,9.5,166.76,166.73,44.4764457]
[1747598115522,9.5,166.76,166.73,5.99772086]
[1747598115821,9.5,166.76,166.75,38.47872484]
[1747598116198,9.5,166.76,166.73,5.99772086]
[1747598116403,9.5,166.79,166.75,38.47872484]
[1747598116599,9.5,166.78,166.73,31.99772086]
[1747598116801,9.5,166.78,166.77,38.47872484]
[1747598117518,9.5,166.73,166.72,38.47872484]
[1747598117827,9.5,166.74,166.72,38.47872484]
[1747598117989,9.5,166.74,166.73,38.47872484]
[1747598119005,9.5,166.76,166.73,44.47635039]
[1747598119313,9.5,166.74,166.73,5.99762555]
[1747598119520,9.5,166.74,166.71,5.998173]
[1747598119706,9.5,166.75,166.73,38.47872484]
[1747598119913,9.5,166.75,166.74,38.47872484]
[1747598121036,9.5,166.77,166.74,44.476086]
[1747598121337,34.16,166.84,166.76,76.95744968]
[1747598121338,9.5,166.84,166.76,76.95744968]
[1747598121638,9.5,166.84,166.83,38.47872484]
[1747598122114,9.5,166.84,166.77,41.2381682]
[1747598122315,9.5,166.84,166.83,38.47872484]
[1747598122720,9.5,166.81,166.77,27.5606]
[1747598123012,9.5,166.81,166.8,44.47392867]
[1747598123215,9.5,166.87,166.8,44.47392867]
[1747598123425,34.1,166.89,166.8,44.47392867]
[1747598123426,43.6,166.89,166.86,38.47872484]
[1747598123736,14.97579981,166.94,166.86,38.47872484]
[1747598123737,9.5,166.91,166.88,38.47872484]
[1747598123913,5.99088652,166.93,166.86,38.47872484]
[1747598123914,9.5,166.92,166.9,38.47872484]
[1747598124232,9.5,166.92,166.86,38.47872484]
[1747598124528,9.5,166.94,166.91,38.47872484]
[1747598124729,9.5,166.94,166.86,64.47872484]
[1747598124905,9.5,166.94,166.93,38.47872484]
[1747598125641,9.5,166.9,166.86,64.47872484]
[1747598125836,9.5,166.9,166.89,38.47872484]
[1747598126209,9.5,166.93,166.89,38.47872484]
[1747598126410,9.5,166.94,166.86,71.66990699]
[1747598126721,9.5,166.9,166.86,71.66990699]
[1747598126905,5.98985271,166.95,166.86,71.66990699]
[1747598126906,9.5,166.94,166.89,38.47872484]
[1747598127106,15.49017611,166.94,166.93,38.47872484]
[1747598127332,15.48995224,166.95,166.93,38.47872484]
[1747598127532,9.5,166.9,166.87,5.99242999]
[1747598127735,9.5,166.9,166.89,38.47872484]
[1747598127909,9.5,166.94,166.89,38.47872484]
[1747598128535,9.5,166.94,166.93,38.47872484]
[1747598128831,9.5,166.96,166.93,38.47872484]
[1747598129040,9.5,166.95,166.89,31.99161247]
[1747598129231,9.5,166.95,166.94,38.47872484]
[1747598129737,9.5,166.96,166.94,38.47872484]
[1747598129937,9.5,166.96,166.95,38.47872484]
[1747598130636,9.5,166.97,166.95,38.47872484]
[1747598130934,9.5,166.97,166.96,38.47872484]
[1747598132237,9.5,166.97,166.9,32.1674]
[1747598132442,9.5,166.97,166.96,38.47872484]
[1747598132619,15.48909983,166.97,166.96,38.47872484]
[1747598132814,9.5,166.97,166.96,38.47872484]
[1747598134914,9.5,166.98,166.96,38.47872484]
[1747598135127,9.5,167.01,166.97,38.47872484]
[1747598135328,9.5,166.99,166.96,5.98945855]
[1747598135545,9.5,166.99,166.98,38.47872484]
[1747598136516,9.5,167.05,166.98,38.47872484]
[1747598136721,9.5,167.02,166.98,18.64964886]
[1747598136941,9.5,167.02,167.01,38.47872484]
[1747598137619,9.5,167.05,167.01,38.47872484]
[1747598137819,9.5,167.05,167.04,38.47872484]
[1747598138048,9.5,167.05,167.04,35.47872484]
[1747598138449,9.5,167.02,166.97,26.0]
[1747598138625,9.5,167.02,167.01,38.47872484]
[1747598139533,9.5,167.05,167.01,38.47872484]
[1747598139736,9.5,167.02,166.99,5.98812733]
[1747598139945,9.5,167.02,167.01,25.31672423]
[1747598140752,9.5,166.99,166.95,25.31672423]
[1747598140924,9.5,167.01,166.98,25.31672423]
[1747598141128,9.5,167.01,167.0,25.31672423]
[1747598142355,9.5,167.04,167.0,25.31672423]
[1747598142656,9.5,167.04,167.03,25.31672423]
[1747598143154,9.5,167.06,167.03,25.31672423]
[1747598143450,9.5,167.04,167.0,6.0946]
[1747598143654,9.5,167.04,167.01,5.9876654]
[1747598144325,9.5,167.06,167.03,50.63344846]
[1747598144552,9.5,167.07,167.05,25.31672423]
[1747598144733,9.5,167.1,167.06,25.31672423]
[1747598144934,9.5,167.11,167.09,25.31672423]
[1747598145131,9.5,167.13,167.1,25.31672423]
[1747598145353,9.5,167.15,167.06,18.64964886]
[1747598145539,9.5,167.11,167.07,1.19649735]
[1747598145740,9.5,167.11,167.08,5.98515681]
[1747598146042,9.5,167.14,167.08,5.98515681]
[1747598146286,9.5,167.16,167.09,18.64964886]
[1747598146431,9.5,167.14,167.09,19.84622534]
[1747598146633,9.5,167.14,167.13,25.31672423]
[1747598147351,5.98196863,167.17,167.13,25.31672423]
[1747598147352,9.5,167.16,167.13,25.31672423]
[1747598147540,9.5,167.12,167.08,1.666]
[1747598147742,9.5,167.11,167.08,1.666]
[1747598147953,9.5,167.1,167.08,1.666]
[1747598148245,9.5,167.08,167.04,18.64964886]
[1747598148457,9.5,167.08,167.04,5.98624094]
[1747598148632,9.5,167.09,167.04,24.6358898]
[1747598148826,9.5,167.06,167.03,1.666]
[1747598149039,9.5,167.06,167.03,7.65280811]
[1747598149254,9.5,167.07,167.03,7.65280811]
[1747598149456,26.0,167.15,167.03,7.65280811]
[1747598149457,9.5,167.1,167.04,18.64964886]
[1747598149632,9.5,167.07,167.04,18.64964886]
[1747598150056,9.5,167.07,167.03,7.65280811]
[1747598151073,9.5,167.09,167.03,7.65280811]
[1747598151253,9.5,167.07,167.03,7.65280811]
[1747598151957,9.5,167.05,167.0,63.8346]
[1747598152265,9.5,167.05,167.01,24.63729218]
[1747598152771,9.5,167.12,167.04,44.64964886]
[1747598153154,9.5,167.08,167.04,44.64964886]
[1747598153357,9.5,167.08,167.05,5.98623166]
[1747598153579,9.5,167.1,167.05,5.98623166]
[1747598153887,9.5,167.1,167.04,44.64964886]
[1747598153888,9.5,167.06,167.03,5.98694845]
[1747598154581,9.5,167.07,167.03,5.98694845]
[1747598154766,9.5,167.06,167.03,5.98694845]
[1747598155166,9.5,167.06,167.02,5.9873069]
[1747598156655,9.5,167.08,167.02,5.9873069]
[1747598156890,9.5,167.08,167.03,18.64964886]
[1747598157182,9.5,167.07,167.03,18.64964886]
[1747598157383,9.5,167.08,167.04,5.98659003]
[1747598157582,9.5,167.12,167.05,18.64964886]
[1747598157791,9.5,167.08,167.05,18.64964886]
[1747598157974,9.5,167.12,167.05,18.64964886]
[1747598158682,9.5,167.11,167.05,18.64964886]
[1747598158897,9.5,167.16,167.09,18.64964886]
[1747598159082,9.5,167.16,167.12,26.0]
[1747598159266,9.5,167.16,167.13,1.19628125]